fUSD/lending_fUSD_20251029
["ID","MTS","AMOUNT","RATE_DAILY","PERIOD"]
[392586711,1761696648001,-500.0,0.00027397,2]
[392586712,1761696648010,-1278.75,0.00027397,2]
[392586713,1761696648019,-565.37,0.00027397,2]
[392586714,1761696648028,-300.0,0.00027397,3]
[392586715,1761696648038,-300.0,0.00027397,3]
[392586716,1761696648048,-500.0,0.00027397,2]
[392586717,1761696648058,-500.0,0.00027397,2]
[392586718,1761696648067,-500.0,0.00027397,2]
[392586719,1761696648076,-500.0,0.00027397,2]
[392586720,1761696648085,-500.0,0.00027397,2]
[392586721,1761696648095,-151.0,0.00027397,7]
[392586722,1761696648104,-151.0,0.00027397,7]
[392586723,1761696648114,-151.0,0.00027397,7]
[392586724,1761696648123,-702.02,0.00027397,2]
[392586725,1761696648133,-581.89579,0.00027397,2]
[392586726,1761696648143,-564.57696482,0.00027397,2]
[392586727,1761696648152,-500.0,0.00027397,2]
[392586728,1761696648161,-542.42106886,0.00027397,2]
[392586729,1761696648170,-500.0,0.00027397,2]
[392586730,1761696648182,-500.0,0.00027397,2]
[392586731,1761696648192,-500.0,0.00027397,2]
[392586732,1761696648201,-589.7,0.00027397,2]
[392586733,1761696648210,-984.33,0.00027397,2]
[392586734,1761696648219,-500.0,0.00027397,2]
[392586735,1761696648231,-500.0,0.00027397,2]
[392586736,1761696648240,-1041.01,0.00027397,2]
[392586737,1761696648251,-500.0,0.00027397,2]
[392586738,1761696648261,-500.0,0.00027397,2]
[392586739,1761696648270,-500.0,0.00027397,2]
[392586740,1761696648279,-500.0,0.00027397,2]
[392586741,1761696648288,-3475.95,0.00027397,2]
[392586742,1761696648298,-500.0,0.00027397,2]
[392586743,1761696648307,-1045.2,0.00027397,2]
[392586744,1761696648316,-500.0,0.00027397,2]
[392586745,1761696648325,-500.0,0.00027397,2]
[392586746,1761696648335,-500.0,0.00027397,2]
[392586747,1761696648345,-500.0,0.00027397,2]
[392586748,1761696648354,-1163.93,0.00027397,2]
[392586749,1761696648363,-898.59,0.00027397,2]
[392586750,1761696648373,-500.0,0.00027397,2]
[392586751,1761696648382,-500.0,0.00027397,2]
[392586752,1761696648391,-151.0,0.00027397,7]
[392586753,1761696648401,-151.0,0.00027397,7]
[392586754,1761696648410,-500.0,0.00027397,2]
[392586755,1761696648419,-500.0,0.00027397,2]
[392586756,1761696648429,-500.0,0.00027397,2]
[392586757,1761696648438,-500.0,0.00027397,2]
[392586758,1761696648447,-500.0,0.00027397,2]
[392586759,1761696648456,-500.0,0.00027397,2]
[392586760,1761696648465,-500.0,0.00027397,2]
[392586761,1761696648474,-500.0,0.00027397,2]
[392586762,1761696648484,-500.0,0.00027397,2]
[392586763,1761696648493,-500.0,0.00027397,2]
[392586764,1761696648502,-500.0,0.00027397,2]
[392586765,1761696648511,-492.10450084,0.00027397,2]
[392586766,1761696648521,-1097.26,0.00027397,2]
[392586767,1761696648531,-500.0,0.00027397,2]
[392586768,1761696648540,-151.0,0.00027397,7]
[392586769,1761696648553,-227.728748,0.00027397,7]
[392586770,1761696648562,-500.0,0.00027397,2]
[392586771,1761696648571,-500.0,0.00027397,2]
[392586772,1761696648580,-500.0,0.00027397,2]
[392586773,1761696648590,-500.0,0.00027397,2]
[392586774,1761696648599,-500.0,0.00027397,2]
[392586775,1761696648609,-5994.19,0.00027397,2]
[392586776,1761696648618,-500.0,0.00027397,2]
[392586777,1761696648627,-500.0,0.00027397,2]
[392586778,1761696648637,-500.0,0.00027397,2]
[392586779,1761696648646,-500.0,0.00027397,2]
[392586780,1761696648656,-500.0,0.00027397,2]
[392586781,1761696648666,-500.0,0.00027397,2]
[392586782,1761696648675,-500.0,0.00027397,2]
[392586783,1761696648685,-1268.02,0.00027397,2]
[392586784,1761696648695,-505.73887402,0.00027397,2]
[392586785,1761696648704,-500.0,0.00027397,2]
[392586786,1761696648714,-500.0,0.00027397,2]
[392586787,1761696648723,-500.0,0.00027397,2]
[392586788,1761696648733,-500.0,0.00027397,2]
[392586789,1761696648742,-1177.26,0.00027397,2]
[392586790,1761696648751,-500.0,0.00027397,2]
[392586791,1761696648761,-500.0,0.00027397,2]
[392586792,1761696648771,-500.0,0.00027397,2]
[392586793,1761696648780,-501.89559162,0.00027397,2]
[392586794,1761696648790,-508.46911949,0.00027397,2]
[392586795,1761696648800,-500.0,0.00027397,2]
[392586796,1761696648809,-900.71,0.00027397,2]
[392586797,1761696648818,-505.02463344,0.00027397,2]
[392586798,1761696648828,-500.0,0.00027397,2]
[392586799,1761696648837,-500.0,0.00027397,2]
[392586800,1761696648846,-500.0,0.00027397,2]
[392586801,1761696648984,-500.0,0.00027397,2]
[392586802,1761696648995,-243.93,0.00027397,2]
[392586803,1761696649004,-500.0,0.00027397,2]
[392586804,1761696649014,-500.0,0.00027397,2]
[392586805,1761696649023,-500.0,0.00027397,2]
[392586806,1761696649033,-2901.25,0.00027397,2]
[392586807,1761696649042,-500.0,0.00027397,2]
[392586808,1761696649051,-28664.93,0.00027397,2]
[392586809,1761696649060,-500.0,0.00027397,2]
[392586810,1761696649069,-500.0,0.00027397,2]
[392586811,1761696649079,-500.0,0.00027397,2]
[392586812,1761696649088,-425.08188996,0.00027397,2]
[392586813,1761696649098,-500.0,0.00027397,2]
[392586814,1761696649107,-538.43,0.00027397,2]
[392586815,1761696649116,-500.0,0.00027397,2]
[392586816,1761696649125,-500.0,0.00027397,2]
[392586817,1761696649135,-500.0,0.00027397,2]
[392586818,1761696649144,-500.0,0.00027397,2]
[392586819,1761696649156,-500.0,0.00027397,2]
[392586820,1761696649166,-527.01538156,0.00027397,2]
[392586821,1761696649176,-551.73171046,0.00027397,2]
[392586822,1761696649192,-535.350692,0.00027397,7]
[392586823,1761696649202,-535.350692,0.00027397,7]
[392586824,1761696649213,-535.350692,0.00027397,7]
[392586825,1761696649223,-535.350692,0.00027397,7]
[392586826,1761696649233,-500.0,0.00027397,2]
[392586827,1761696649243,-500.0,0.00027397,2]
[392586828,1761696649254,-535.350692,0.00027397,7]
[392586829,1761696649266,-535.350692,0.00027397,7]
[392586830,1761696649276,-535.350692,0.00027397,7]
[392586831,1761696649286,-535.350692,0.00027397,7]
[392586832,1761696649296,-2425.73,0.00027397,2]
[392586833,1761696649306,-535.350692,0.00027397,7]
[392586834,1761696649316,-500.0,0.00027397,2]
[392586835,1761696649326,-535.350692,0.00027397,7]
[392586836,1761696649335,-535.350692,0.00027397,7]
[392586837,1761696649345,-535.350692,0.00027397,7]
[392586838,1761696649354,-500.0,0.00027397,2]
[392586839,1761696649363,-535.350692,0.00027397,7]
[392586840,1761696649372,-535.350692,0.00027397,7]
[392586841,1761696649382,-535.350692,0.00027397,7]
[392586842,1761696649391,-535.350691,0.00027397,7]
[392586843,1761696649399,-500.0,0.00027397,2]
[392586844,1761696649411,-500.0,0.00027397,2]
[392586845,1761696649421,-526.31175645,0.00027397,2]
[392586846,1761696649430,-502.61377707,0.00027397,2]
[392586847,1761696649439,-781.67,0.00027397,2]
[392586848,1761696649448,-500.0,0.00027397,2]
[392586849,1761696649457,-569.74852874,0.00027397,2]
[392586850,1761696649467,-500.0,0.00027397,2]
[392586851,1761696649476,-500.0,0.00027397,2]
[392586852,1761696649485,-617.94479891,0.00027397,2]
[392586853,1761696649495,-500.0,0.00027397,2]
[392586854,1761696649504,-500.0,0.00027397,2]
[392586855,1761696649513,-500.0,0.00027397,2]
[392586856,1761696649522,-2928.83,0.00027397,2]
[392586857,1761696649531,-500.0,0.00027397,2]
[392586858,1761696649540,-500.0,0.00027397,2]
[392586859,1761696649550,-500.0,0.00027397,2]
[392586860,1761696649559,-500.0,0.00027397,2]
[392586861,1761696649569,-500.0,0.00027397,2]
[392586862,1761696649578,-500.0,0.00027397,2]
[392586863,1761696649587,-500.0,0.00027397,2]
[392586864,1761696649596,-2888.83549614,0.00027397,2]
[392586865,1761696650299,-589.74000767,0.00027397,2]
[392586866,1761696650317,-759.99449619,0.00027397,2]
[392586867,1761696650332,-500.0,0.00027397,2]
[392586868,1761696650347,-500.0,0.00027397,2]
[392586869,1761696650362,-500.0,0.00027397,2]
[392586870,1761696650377,-138.37063424,0.00027397,2]
[392586871,1761696681850,640.0,0.000315,120]
[392586872,1761696684571,244.0,0.000315,120]
[392586873,1761696685395,338.0,0.000315,120]
[392586874,1761696686208,310.0,0.000315,120]
[392586875,1761696696248,500.0,0.00031506,120]
[392586876,1761696704366,500.0,0.00031506,120]
[392586877,1761696745604,1236.49934274,0.000315,120]
[392586878,1761696747633,410.0,0.000315,120]
[392586880,1761696754519,153.5774646,0.00031506,120]
[392586954,1761697648334,153.37877967,0.000195,3]
[392586973,1761697831786,-729.29825136,0.0001499,2]
[392586974,1761697831796,-224.1246753,0.0001499,2]
[392586975,1761697831806,-300.0,0.00014999,2]
[392586976,1761697831816,-1200.0,0.00014999,2]
[392586977,1761697831827,-1473.54241199,0.00015,2]
[392586978,1761697831840,-50828.49516887,0.00015,2]
[392586979,1761697831856,-9095.75272351,0.00015,2]
[392586980,1761697831867,-676.838,0.00015,2]
[392586981,1761697831878,-785.71451038,0.00015,2]
[392586982,1761697831902,-712.17874627,0.00015,2]
[392586983,1761697831914,-633.49960292,0.00015,2]
[392586984,1761697831924,-19060.77539836,0.00015,2]
[392586985,1761697831936,-1060.57603231,0.00015,2]
[392586986,1761697831960,-29140.13201316,0.00015,2]
[392586987,1761697831970,-752.56416502,0.00015,2]
[392587035,1761697837771,-1459.4595932,0.00015,2]
[392587036,1761697837783,-426.44784071,0.00015,2]
[392587037,1761697837828,-101974.00102986,0.00015,2]
[392587038,1761697837884,-305.96311241,0.00015,2]
[392587039,1761697837996,-1099.91024092,0.00015,2]
[392587055,1761697839941,-1999.15230886,0.00015,2]
[392587056,1761697840186,-1780.23746608,0.00015,2]
[392587325,1761697842993,-2229.60854926,0.00015,2]
[392587353,1761697845878,-1931.93830246,0.00015,2]
[392587354,1761697846047,-4110.41870686,0.00015,2]
[392587361,1761698507194,160.0,0.000315,120]
[392587362,1761698508363,160.0,0.000315,120]
[392587366,1761698866144,282.05,0.00013699,2]
[392587372,1761699013841,220.0,0.00014427,2]
[392587426,1761699032622,-161.722,0.000147,2]
[392587427,1761699032632,-161.35059604,0.000149,2]
[392587428,1761699032641,-49.84162004,0.000149,2]
[392587429,1761699032660,-119.59152631,0.000149,2]
[392587430,1761699032669,-156.42488375,0.000149,2]
[392587431,1761699032678,-166.2566151,0.000149,2]
[392587432,1761699032687,-656.36842626,0.000149,2]
[392587433,1761699032696,-300.0,0.00014972,2]
[392587434,1761699032705,-500.0,0.00014973,2]
[392587435,1761699032714,-164.19956074,0.00014973,2]
[392587436,1761699032724,-563.342996,0.00014973,2]
[392587437,1761699032733,-500.0,0.00014973,2]
[392587438,1761699032742,-500.0,0.00014973,2]
[392587439,1761699032751,-500.0,0.00014973,2]
[392587440,1761699032761,-151.0,0.00014991,2]
[392587441,1761699032770,-3371.8770663,0.00014999,2]
[392587442,1761699032778,-506.97914855,0.00014999,2]
[392587444,1761699032787,-500.0,0.00014999,2]
[392587446,1761699032797,-523.33,0.00014999,2]
[392587448,1761699032806,-523.33,0.00014999,2]
[392587450,1761699032815,-523.33,0.00014999,2]
[392587452,1761699032825,-523.33,0.00014999,2]
[392587454,1761699032834,-523.33,0.00014999,2]
[392587455,1761699032843,-6.81977699,0.00014999,2]
[392587458,1761699032855,-516.51022301,0.00014999,2]
[392587460,1761699032864,-523.33,0.00014999,2]
[392587462,1761699032874,-666.0,0.00014999,2]
[392587464,1761699032883,-2649.95538692,0.00015,2]
[392587483,1761699038012,-1162.52160585,0.00015,2]
[392587484,1761699038066,-252.79976341,0.00015,2]
[392587485,1761699038077,-297.30562274,0.00015,2]
[392587486,1761699038088,-534.35082033,0.00015,2]
[392587487,1761699038120,-1541.22003675,0.00015,2]
[392587490,1761699040056,-1595.4610175,0.00015,2]
[392587491,1761699040236,-4318.81114374,0.00015,2]
[392587492,1761699040477,-131103.75496097,0.00015,2]
[392587527,1761699043213,-1129.5546,0.00015,2]
[392587529,1761699043464,-11050.98799715,0.00015,2]
[392587530,1761699046106,-99765.23474155,0.00015,2]
[392587531,1761699046303,-2763.73493062,0.00015,2]
[392587532,1761699046314,-623.60309711,0.00015,2]
[392587537,1761699504927,259.0,0.000315,120]
[392587539,1761699559405,445.0,0.000315,120]
[392587540,1761699626389,368.0,0.000315,120]
[392587541,1761699686298,1366.0,0.000315,120]
[392587542,1761699912957,150.0,0.00013488,2]
[392587571,1761700122379,371.13,9.976e-05,2]
[392587572,1761700122499,371.13,0.00010501,2]
[392587573,1761700122697,371.13,0.00011026,2]
[392587574,1761700123138,371.13,0.00011551,2]
[392587575,1761700123400,371.13,0.00012076,2]
[392587576,1761700123628,371.13,0.00012601,2]
[392587577,1761700123845,371.13,0.00013126,2]
[392587578,1761700124091,371.13,0.00013651,2]
[392587579,1761700124365,371.13,0.00014176,2]
[392587583,1761700227665,-161.722,0.000147,2]
[392587584,1761700227688,-32.2326165,0.00014701,2]
[392587596,1761700232187,-338.8973835,0.00014701,2]
[392587597,1761700232196,-169.43314635,0.000149,2]
[392587598,1761700232206,-156.42488375,0.000149,2]
[392587599,1761700232215,-590.73158358,0.000149,2]
[392587600,1761700232224,-500.0,0.00014973,2]
[392587601,1761700232233,-500.73416328,0.00014973,2]
[392587602,1761700232243,-150.0,0.00014986,2]
[392587603,1761700232252,-151.0,0.00014991,2]
[392587604,1761700232261,-151.0,0.00014991,2]
[392587605,1761700232270,-151.0,0.00014991,2]
[392587606,1761700232280,-151.0,0.00014991,2]
[392587607,1761700232289,-151.0,0.00014991,2]
[392587608,1761700232298,-151.0,0.00014991,2]
[392587609,1761700232307,-151.0,0.00014991,2]
[392587610,1761700232316,-151.0,0.00014991,2]
[392587611,1761700232325,-151.0,0.00014991,2]
[392587612,1761700232334,-151.0,0.00014991,2]
[392587613,1761700232343,-151.0,0.00014991,2]
[392587614,1761700232353,-151.0,0.00014991,2]
[392587615,1761700232362,-151.0,0.00014991,2]
[392587616,1761700232371,-151.0,0.00014991,2]
[392587617,1761700232380,-151.0,0.00014991,2]
[392587618,1761700232389,-151.0,0.00014991,2]
[392587619,1761700232398,-151.0,0.00014991,2]
[392587620,1761700232408,-182.34841251,0.00014991,2]
[392587621,1761700232418,-19157.40831822,0.00014999,2]
[392587622,1761700232429,-4813.91504958,0.00014999,2]
[392587623,1761700232438,-502.04,0.00014999,2]
[392587624,1761700232448,-502.04,0.00014999,2]
[392587625,1761700232457,-502.04,0.00014999,2]
[392587626,1761700232466,-502.04,0.00014999,2]
[392587627,1761700232475,-502.04,0.00014999,2]
[392587629,1761700232484,-502.04,0.00014999,2]
[392587631,1761700232493,-502.04,0.00014999,2]
[392587633,1761700232501,-12328.7077246,0.00014999,2]
[392587635,1761700232510,-500.0,0.00014999,2]
[392587637,1761700232519,-500.0,0.00014999,2]
[392587639,1761700232528,-500.0,0.00014999,2]
[392587641,1761700232537,-500.0,0.00014999,2]
[392587643,1761700232547,-500.0,0.00014999,2]
[392587645,1761700232556,-500.0,0.00014999,2]
[392587647,1761700232565,-3517.4519962,0.00014999,2]
[392587648,1761700232574,-503.41898915,0.00014999,2]
[392587650,1761700232583,-7936.13714643,0.00015,2]
[392587651,1761700232603,-3957.5341006,0.00015,2]
[392587653,1761700232614,-265.869998,0.00015,2]
[392587654,1761700232638,-15795.15129337,0.00015,2]
[392587655,1761700238267,-1275.99238467,0.00015,2]
[392587663,1761700240491,-1125.124,0.00015,2]
[392587669,1761700244522,-310.53600024,0.00015,2]
[392587671,1761700244536,-291.55840071,0.00015,2]
[392587674,1761700246190,-250.3430431,0.00015,2]
[392587675,1761700246301,-3059.72938881,0.00015,2]
[392587676,1761700246313,-14272.23680952,0.00015,2]
[392587685,1761701060336,614.0,0.000315,120]
[392587686,1761701109445,150.0,0.00013488,2]
[392587687,1761701130139,200.0,0.00031507,120]
[392587688,1761701193864,1000.0,0.00031,120]
[392587734,1761701281059,870.95596545,0.0001951,5]
[392587741,1761701386933,399.0,0.00031506,120]
[392587742,1761701407913,1000.0,0.00031506,120]
[392587748,1761701431441,-216.9840129,0.0001469,2]
[392587749,1761701431451,-484.91315,0.0001485,2]
[392587750,1761701431461,-423.43480564,0.00014899,2]
[392587751,1761701431538,-46.76371295,0.00014899,2]
[392587752,1761701431549,-158.5716595,0.00014913,2]
[392587753,1761701431558,-169.43314635,0.00014913,2]
[392587754,1761701431568,-603.56072047,0.00014913,2]
[392587755,1761701431578,-500.0,0.00014973,2]
[392587756,1761701431588,-500.0,0.00014973,2]
[392587757,1761701431598,-500.0,0.00014973,2]
[392587758,1761701431608,-151.0,0.00014996,2]
[392587759,1761701431620,-258.0,0.00014998,2]
[392587760,1761701431630,-300.0,0.00014998,2]
[392587761,1761701431640,-1200.0,0.00014998,2]
[392587762,1761701431650,-300.0,0.00014998,2]
[392587763,1761701431659,-251.07048995,0.00014998,2]
[392587764,1761701431669,-285.7565423,0.00014999,2]
[392587765,1761701431678,-87145.2454388,0.00014999,2]
[392587766,1761701431688,-937.20171343,0.00014999,2]
[392587767,1761701431699,-2202.41969237,0.00014999,2]
[392587768,1761701431709,-500.0,0.00014999,2]
[392587769,1761701431719,-500.0,0.00014999,2]
[392587770,1761701431728,-500.0,0.00014999,2]
[392587771,1761701431737,-500.0,0.00014999,2]
[392587772,1761701431747,-500.0,0.00014999,2]
[392587773,1761701431756,-500.0,0.00014999,2]
[392587774,1761701431772,-500.0,0.00014999,2]
[392587775,1761701431787,-506.73252501,0.00014999,2]
[392587776,1761701431797,-500.0,0.00014999,2]
[392587777,1761701431807,-500.0,0.00014999,2]
[392587778,1761701431817,-500.0,0.00014999,2]
[392587779,1761701431827,-500.0,0.00014999,2]
[392587781,1761701431837,-500.0,0.00014999,2]
[392587783,1761701431847,-500.0,0.00014999,2]
[392587785,1761701431857,-501.74071309,0.00014999,2]
[392587787,1761701431867,-8299.84074991,0.00015,2]
[392587788,1761701431889,-11253.89094,0.00015,2]
[392587789,1761701431913,-502.25187152,0.00015,2]
[392587790,1761701437401,-268.41877257,0.00014913,2]
[392587791,1761701437410,-481.32316836,0.00015,2]
[392587792,1761701437422,-805.0,0.00015,2]
[392587793,1761701437492,-6135.64830319,0.00015,2]
[392587794,1761701437503,-10677.90834783,0.00015,2]
[392587807,1761701439557,-3660.47964759,0.00015,2]
[392587808,1761701439654,-308293.1648083,0.00015,2]
[392587809,1761701439665,-855.71632063,0.00015,2]
[392587810,1761701439680,-268365.45920883,0.00015,2]
[392587812,1761701439943,-254.05805489,0.00015,2]
[392587820,1761701443608,-5902.09396961,0.00015,2]
[392587821,1761701443619,-56201.99310739,0.00015,2]
[392587824,1761701445774,-5561.41690336,0.00015,2]
[392587825,1761701445786,-328.12500212,0.00015,2]
[392587829,1761701591629,462.0,0.00031506,120]
[392587830,1761701638928,712.41,0.00027397,120]
[392587831,1761701639168,712.41,0.00027671,120]
[392587832,1761701639468,712.41,0.00027945,120]
[392587833,1761701639826,712.41,0.00028219,120]
[392587834,1761701640074,712.41,0.00028493,120]
[392587835,1761701640323,712.41,0.00028767,120]
[392587836,1761701640599,712.41,0.00029041,120]
[392587837,1761701640860,712.41,0.00029315,120]
[392587838,1761701641096,712.41,0.00029589,120]
[392587839,1761701641689,712.41,0.00029863,120]
[392587840,1761701642349,712.41,0.00030136,120]
[392587841,1761701642535,712.41,0.0003041,120]
[392587842,1761701643099,712.41,0.00030684,120]
[392587843,1761701643318,712.41,0.00030958,120]
[392587844,1761701643654,712.41,0.00031232,120]
[392587845,1761701643892,712.41,0.00031506,120]
[392587846,1761701807230,999.0,0.00018568,3]
[392587848,1761701858047,267.94,0.00013699,2]
[392587850,1761701980058,-179.948,0.000147,2]
[392587851,1761701980080,-179.714,0.000147,2]
[392587853,1761702202765,617.0,0.000315,120]
[392587854,1761702205764,-179.949,0.000147,2]
[392587855,1761702205786,-179.714,0.000147,2]
[392587856,1761702238220,500.0,0.00027397,120]
[392587857,1761702238489,500.0,0.00027671,120]
[392587858,1761702238763,500.0,0.00027945,120]
[392587859,1761702239024,500.0,0.00028219,120]
[392587860,1761702239292,500.0,0.00028493,120]
[392587861,1761702239545,500.0,0.00028767,120]
[392587862,1761702239801,500.0,0.00029041,120]
[392587863,1761702240041,500.0,0.00029315,120]
[392587864,1761702240287,500.0,0.00029589,120]
[392587865,1761702240557,500.0,0.00029863,120]
[392587866,1761702240798,500.0,0.00030136,120]
[392587867,1761702241160,199.29672874,0.0003041,120]
[392587868,1761702264181,152.0,0.000315,120]
[392587869,1761702325753,973.75697054,0.000315,120]
[392587931,1761702583034,-168.75,0.00014755,2]
[392587932,1761702583056,-34.18181195,0.00014762,2]
[392587936,1761702631610,-184.2519259,0.00014762,2]
[392587937,1761702631620,-416.79709,0.0001485,2]
[392587938,1761702631631,-161.4578639,0.000149,2]
[392587939,1761702631641,-241.57689534,0.000149,2]
[392587940,1761702631650,-594.2718203,0.000149,2]
[392587941,1761702631661,-940.83286647,0.000149,2]
[392587942,1761702631672,-451.0,0.00014972,2]
[392587943,1761702631682,-505.35857113,0.00014973,2]
[392587944,1761702631691,-413.34595529,0.00014973,2]
[392587945,1761702631701,-503.83623707,0.00014973,2]
[392587946,1761702631711,-416.7971,0.0001498,2]
[392587947,1761702631720,-300.0,0.0001499,2]
[392587948,1761702631730,-151.0,0.00014991,2]
[392587949,1761702631740,-151.0,0.00014991,2]
[392587950,1761702631749,-151.0,0.00014991,2]
[392587951,1761702631759,-151.0,0.00014991,2]
[392587952,1761702631770,-165.33450404,0.00014991,2]
[392587953,1761702631780,-151.11345453,0.00014999,2]
[392587954,1761702631789,-500.0,0.00014999,2]
[392587955,1761702631798,-500.0,0.00014999,2]
[392587956,1761702631807,-500.0,0.00014999,2]
[392587957,1761702631816,-500.0,0.00014999,2]
[392587958,1761702631825,-500.0,0.00014999,2]
[392587959,1761702631834,-500.0,0.00014999,2]
[392587960,1761702631844,-510.5856078,0.00014999,2]
[392587961,1761702631853,-500.0,0.00014999,2]
[392587962,1761702631862,-500.0,0.00014999,2]
[392587963,1761702631872,-500.0,0.00014999,2]
[392587964,1761702631882,-21574.3265222,0.00015,2]
[392587965,1761702631893,-28287.01800837,0.00015,2]
[392587966,1761702631924,-805.644,0.00015,2]
[392588028,1761702639751,-1.6e-07,0.00015,2]
[392588029,1761702639778,-2000.54943193,0.00015,2]
[392588030,1761702640153,-2253.5073968,0.00015,2]
[392588046,1761702645850,-276.46873019,0.00015,2]
[392588048,1761702648091,150.5,0.00027387,120]
[392588049,1761702648559,150.5,0.00027377,120]
[392588050,1761702648991,193.26,0.00027367,120]
[392588051,1761702670920,180.84403455,0.000149,5]
[392588052,1761702670947,319.15596545,0.000149,5]
[392588053,1761702689483,3646.22646531,0.000145,2]
[392588054,1761702702897,-7916.45014561,0.000145,2]
[392588055,1761702704676,-399.08,0.000145,2]
[392588056,1761702708624,-184.0,0.000145,2]
[392588057,1761702712022,-4022.00730976,0.000145,2]
[392588058,1761702717568,-354.77009464,0.000145,2]
[392588059,1761702719126,-529.58885321,0.000145,2]
[392588060,1761702721499,-20956.0464452,0.000145,2]
[392588061,1761702724244,-159.37123418,0.000145,2]
[392588062,1761702726611,-5515.0,0.000145,2]
[392588063,1761702807604,166.0,0.00031507,120]
[392588064,1761702809547,-500.0,0.000145,2]
[392588065,1761702812189,-500.0,0.000145,2]
[392588066,1761702813995,-500.0,0.000145,2]
[392588067,1761702815519,-500.0,0.000145,2]
[392588068,1761702816926,-500.0,0.000145,2]
[392588069,1761702818060,-500.0,0.000145,2]
[392588070,1761702819233,-500.0,0.000145,2]
[392588071,1761702820401,-500.0,0.000145,2]
[392588072,1761702821605,-500.0,0.000145,2]
[392588073,1761702823177,-500.0,0.000145,2]
[392588074,1761702824483,-500.0,0.000145,2]
[392588075,1761702826193,-500.0,0.000145,2]
[392588076,1761702827292,-500.0,0.000145,2]
[392588077,1761702828729,-500.0,0.000145,2]
[392588078,1761702830216,-500.0,0.000145,2]
[392588079,1761702831643,-500.0,0.000145,2]
[392588080,1761702833456,-500.0,0.000145,2]
[392588081,1761703166508,163.66,8.706e-05,2]
[392588082,1761703166731,163.66,9.164e-05,2]
[392588083,1761703166965,163.66,9.622e-05,2]
[392588084,1761703167391,163.66,0.0001008,2]
[392588085,1761703167794,163.66,0.00010538,2]
[392588086,1761703167892,163.66,0.00010997,2]
[392588087,1761703168060,163.66,0.00011455,2]
[392588088,1761703168282,163.66,0.00011913,2]
[392588089,1761703168544,163.66,0.00012371,2]
[392588090,1761703168753,163.66,0.00012829,2]
[392588091,1761703168975,163.66,0.00013287,2]
[392588092,1761703169217,163.66,0.00013746,2]
[392588093,1761703169440,163.66,0.00014204,2]
[392588094,1761703199951,-99.16645209,0.000145,2]
[392588095,1761703199973,-163.66,0.00014662,2]
[392588096,1761703199994,-169.013,0.000147,2]
[392588097,1761703200016,-324.757,0.000147,2]
[392588098,1761703302455,-169.01458659,0.000147,2]
[392588099,1761703302478,-195.29124383,0.000147,2]
[392588100,1761703371071,187.14008305,0.0001425,2]
[392588101,1761703477509,1000.0,0.000315,120]
[392588102,1761703511484,-64.51475617,0.000147,2]
[392588103,1761703511510,-208.81487579,0.000147,2]